Cogmind - Beta 16 @@@ ROGUE MODE // 2026.01.27 @ 20:16:13 Player: Merc Result: Destroyed by G-47 Trooper with Particle Gun Performance ------------- Evolutions (2) 1000 Regions Visited (4) 800 Robots Destroyed (31) 155 Value Destroyed (950) 950 Prototype IDs (0) 0 Alien Tech Used (0) 0 Bonus (0) 0 TOTAL SCORE: 2905 Bonus ------- None Cogmind --------- Core Integrity 0/550 Matter 300/300 Energy 100/100 System Corruption 0% Temperature Cool (18) Movement Core (250) Ox4 Location -8/Storage Parts ------- > --- POWER (2) -------- (None) > --- PROPULSION (3) --- (None) > --- UTILITY (4) ------ Small Storage Unit Medium Storage Unit Signal Interpreter > --- WEAPON (2) ------- (None) > --- INVENTORY (10) --- Ion Engine Micro Nuclear Core Thermal Generator Medium Battery (150) Improved Salvage Targeting Computer Power Shielding Tractor Beam Peak State ------------ > --- POWER ------------ Micro Nuclear Core Micro Nuclear Core > --- PROPULSION ------- Carbon-fiber Leg Compact Wheel Compact Wheel > --- UTILITY ---------- Small Storage Unit Medium Storage Unit Signal Interpreter Improved Salvage Targeting Computer > --- WEAPON ----------- Lightning Gun Lightning Gun > --- INVENTORY -------- Ion Engine Micro Nuclear Core Micro Nuclear Core Thermal Generator Improved Salvage Targeting Computer Tractor Beam Lightning Gun [Rating: 30] Favorites ----------- Power Ion Engine Engine Ion Engine Power Core Micro Nuclear Core Propulsion Compact Wheel Leg Aluminum Leg Wheel Compact Wheel Utility Medium Storage Unit Device Heat Sink Storage Medium Storage Unit Processor Signal Interpreter Weapon Assault Rifle Energy Gun Lightning Gun Ballistic Gun Assault Rifle Build | -11 -10 -9 -8 -8 ------- Run | Yrd Mat Mat Mat Sto Slots Evolved 4 | . . 2 2 . Power 1 | . . 1 . . Propulsion 1 | . . . 1 . Utility 2 | . . 1 1 . Weapon . | . . . . . Parts Attached 36 | 7 10 6 10 3 Power 8 | 2 2 1 2 1 Engine 5 | 2 2 1 . . Core 3 | . . . 2 1 Reactor . | . . . . . Propulsion 9 | 2 3 2 2 . Treads . | . . . . . Leg 4 | 2 1 . 1 . Wheel 5 | . 2 2 1 . Hover . | . . . . . Flight . | . . . . . Utility 8 | 1 2 1 3 1 Device 3 | 1 . 1 1 . Storage 2 | . 1 . 1 . Processor 3 | . 1 . 1 1 Hackware . | . . . . . Protection . | . . . . . Artifact . | . . . . . Weapon 11 | 2 3 2 3 1 Energy Gun 6 | 1 1 . 3 1 Energy Cannon . | . . . . . Ballistic Gun 5 | 1 2 2 . . Ballistic Cannon . | . . . . . Launcher . | . . . . . Special Weapon . | . . . . . Impact Weapon . | . . . . . Slashing Weapon . | . . . . . Piercing Weapon . | . . . . . Special Melee Weapon . | . . . . . Unidentified Prototypes . | . . . . . Parts Lost 23 | . 6 6 1 10 Power 6 | . 2 1 . 3 Propulsion 6 | . 1 2 . 3 Utility 3 | . 1 1 . 1 Weapon 8 | . 2 2 1 3 Highest Loss Streak 10 | . 2 3 1 10 To Critical Strikes . | . . . . . Average Backups 4 | . 3 4 5 8 Power 1 | . . . 2 2 Propulsion 1 | . 2 1 . . Utility 1 | . . 2 1 4 Weapon . | . . . 1 . Tool/Special . | . . . . . Unused Backups 6 | . . . 1 5 Power 1 | . . . . 1 Propulsion . | . . . . . Utility 4 | . . . . 4 Weapon 1 | . . . 1 . Tool/Special . | . . . . . Average Slot Usage (%) 88 | . 90 84 87 85 Engine 8 | . 9 20 1 . Core 5 | . . . 14 17 Leg 8 | . 13 . . 7 Wheel 15 | . 13 18 18 13 Device 2 | . 2 4 2 . Storage 14 | . 13 11 17 18 Processor 11 | . 9 11 15 15 Energy Gun 7 | . 5 . 12 13 Ballistic Gun 14 | . 20 19 4 . Peak Build Rating 30 | 6 7 9 30 30 Average Rating 11 | 3 6 8 22 24 On Entrance 10 | . 6 7 7 30 Avg Prop Armor Cover (%) 7 | . . . 7 7 Naked Turns . | . . . . . Heaviest Build 36 | 10 20 25 36 35 Greatest Support 32 | 20 32 32 32 32 Greatest Overweight (x) 10 | . 1 1 1 10 Average Overweight (x) . | . . . . 1 Largest Inventory Capacity 10 | 5 10 10 10 10 Average Capacity 9 | 5 9 10 10 10 Most Carried 10 | 3 7 6 8 10 Average Carried 4 | . 3 3 5 8 Final Capacity 10 | 5 10 10 10 10 Final Carried 7 | 1 7 3 7 7 Class Distribution -------------------- 100% | Mutant Dominant Class ---------------- Mutant | -10/Materials Mutant | -9/Materials Mutant | -8/Materials Mutant | -8/Storage Resources | -11 -10 -9 -8 -8 ----------- Run | Yrd Mat Mat Mat Sto Matter Collected 805 | 268 257 120 160 . Remotely . | . . . . . Salvage Created 1129 | 38 495 181 320 95 Parts 54 | 3 30 9 9 3 Haulers Intercepted . | . . . . . Recyclers Shooed . | . . . . . Parts Field Recycled . | . . . . . Retrieved Matter . | . . . . . Parts Self-Destructed . | . . . . . Prevented . | . . . . . Parts Restored . | . . . . . Kills | -11 -10 -9 -8 -8 ------- Run | Yrd Mat Mat Mat Sto Combat Hostiles Destroyed 27 | 1 14 6 4 2 Guns 22 | 1 13 6 2 . AOE 2 | . . . . 2 Classes Destroyed 7 | 1 2 2 1 1 Tunneler 1 | . 1 . . . Watcher 3 | . . 1 2 . Swarmer 7 | . 3 4 . . Grunt 17 | 1 11 1 3 1 Brawler 1 | . . 1 . . Duelist 1 | . . . . 1 Hunter 1 | . . . 1 . Best Kill Streak 4 | 1 4 4 2 2 Combat Bots Only 4 | 1 4 4 2 2 Max Kills in Single Turn 2 | 1 1 1 1 2 Gunslinging . | . . . . . Exploded 2 | . . . . 2 Melee . | . . . . . Uniques/NPCs Destroyed . | . . . . . Combat | -11 -10 -9 -8 -8 -------- Run | Yrd Mat Mat Mat Sto Hostile Shots Fired 303 | 8 99 67 31 98 Missed 95 | 3 30 28 11 23 Hits 208 | 5 69 39 20 75 Melee 4 | . . 4 . . Projectile 204 | 5 69 35 20 75 Critical Strikes 5 | . . 2 1 2 Damage Taken 2769 | 56 820 461 276 1156 Core 773 | 12 128 71 63 499 Absorbed by Shields . | . . . . . Regen/Repaired (Parts) 19 | . 19 . . . Core Remaining (%) 73 | 95 44 82 . . Volleys Fired 115 | 6 53 31 20 5 Largest 2 | 2 2 2 2 2 Hottest 110 | 70 70 43 110 110 Shots Fired 200 | 12 97 47 34 10 Gun 200 | 12 97 47 34 10 Cannon . | . . . . . Launcher . | . . . . . Special . | . . . . . Kinetic 115 | 6 60 47 2 . Thermal 43 | 6 37 . . . Explosive . | . . . . . Electromagnetic 42 | . . . 32 10 Robot Hit Streak 11 | 3 11 6 6 3 Robot Miss Streak 6 | 3 6 4 4 2 Penetration Max . | . . . . . Secondary Targets 5 | . 3 . 2 . Max Gunslinging Chain 1 | . 1 . 1 . Shots Hit Robots 111 | 8 55 24 19 5 Core Hits 52 | 2 26 12 8 4 Critical Kills . | . . . . . Critical Parts Destroyed . | . . . . . Critical Strikes 4 | . 3 . 1 . Burn 3 | . 3 . . . Corrupt 1 | . . . 1 . Melee Attacks . | . . . . . Impact . | . . . . . Slashing . | . . . . . Piercing . | . . . . . Sneak Attacks . | . . . . . Combat Hostiles . | . . . . . Follow-up Attacks . | . . . . . Damage Inflicted 1874 | 114 692 335 462 271 Guns 1711 | 114 692 335 462 108 Cannons . | . . . . . Explosions 163 | . . . . 163 Melee . | . . . . . Ramming . | . . . . . Kinetic 801 | 64 402 335 . . Thermal 503 | 50 290 . . 163 Explosive . | . . . . . Electromagnetic 570 | . . . 462 108 Impact . | . . . . . Slashing . | . . . . . Piercing . | . . . . . Highest Corruption 1 | . . 1 . . Average Corruption 1 | . . 1 . . Corruption Purged . | . . . . . Corruption Blocked . | . . . . . Overload Shots . | . . . . . Overflow Damage 12 | . . . . 12 Projectiles . | . . . . . Explosions 12 | . . . . 12 Melee . | . . . . . Knockbacks . | . . . . . Impact . | . . . . . Kinetic . | . . . . . Secondary . | . . . . . Self-Inflicted Damage 27 | . . . . 27 Shots 1 | . . . . 1 Rammed . | . . . . . Targets Rammed . | . . . . . Kicked . | . . . . . Crushed . | . . . . . Highest Temperature 366 | 84 48 20 300 366 Average Temperature 86 | 45 14 6 118 184 Received Heat Transfer 1161 | 30 333 195 108 495 Effects 3 | . . . 1 2 Energy Bleed 2 | . . . 1 1 Interference 1 | . . . . 1 Siege Activations . | . . . . . Martial Activations . | . . . . . Shielding Activations . | . . . . . Robots Disrupted . | . . . . . Combat Hostiles . | . . . . . Robots Corrupted 2 | . . . 2 . Combat Hostiles 2 | . . . 2 . Parts Fried 2 | . . . 2 . Impact Corruptions . | . . . . . Robots Melted 1 | . 1 . . . Combat Hostiles 1 | . 1 . . . Parts Melted 3 | . 3 . . . Heat Transferred 1421 | 148 1073 . . 200 Parts Sabotaged . | . . . . . Parts Stolen . | . . . . . Parts Stripped . | . . . . . Power Chain Reactions 1 | . . . . 1 Alert | -11 -10 -9 -8 -8 ------- Run | Yrd Mat Mat Mat Sto Maximum Alert Level . | . . . . . Low Security (%) 100 | 100 100 100 100 100 Level 1 . | . . . . . Level 2 . | . . . . . Level 3 . | . . . . . Level 4 . | . . . . . Level 5 . | . . . . . High Security . | . . . . . Max Security . | . . . . . Peak Influence 108 | 20 108 95 82 47 Initial 42 | . 6 42 18 33 Average 32 | 3 40 41 39 8 Influence Increases 821 | 20 407 163 159 72 Destroy 0b10 Robot/C 540 | 20 280 120 80 40 Destroy 0b10 Robot/NC 20 | . 5 5 10 . Destroy Leader 106 | . 50 22 24 10 Successful Hack 11 | . 11 . . . Disable Machine 15 | . . . . 15 Destroy Structure 9 | . 1 1 . 7 Partial Spotted 15 | . . . 15 . Lose Combat Pursuer 105 | . 60 15 30 . Influence Decreases 821 | 10 317 218 125 151 Entered New Map 135 | . 4 58 27 46 Time Decay 531 | 10 273 100 88 60 Lost Part 155 | . 40 60 10 45 Squads Dispatched 4 | . 2 . 1 1 Investigation 3 | . 2 . 1 . Extermination . | . . . . . Reinforcement 1 | . . . . 1 Assault . | . . . . . Garrison . | . . . . . Intercept . | . . . . . Searches Triggered . | . . . . . Construction Impeded . | . . . . . Haulers Reinforced . | . . . . . Active Scanning Responses . | . . . . . Cargo Convoy Interrupts . | . . . . . Stealth | -11 -10 -9 -8 -8 --------- Run | Yrd Mat Mat Mat Sto Distress Signals 5 | . 2 1 1 1 Communications Jammed . | . . . . . Distress Signals . | . . . . . Times Spotted 60 | 1 25 15 11 8 Peak Tracking Total 9 | 1 4 7 4 9 Tactical Retreats 4 | . 2 1 1 . Traps | -11 -10 -9 -8 -8 ------- Run | Yrd Mat Mat Mat Sto Traps Triggered 3 | . 2 1 . . Indirectly . | . . . . . Trap Hack Attempts . | . . . . . Triggered . | . . . . . Disarmed . | . . . . . Reprogrammed . | . . . . . Reused . | . . . . . Traps Extracted . | . . . . . Installed . | . . . . . Triggered . | . . . . . Machines | -11 -10 -9 -8 -8 ---------- Run | Yrd Mat Mat Mat Sto Machines Disabled 1 | . . . . 1 Max in Single Turn 1 | . . . . 1 Machines Repaired . | . . . . . Machines Dismantled . | . . . . . Machines Sabotaged . | . . . . . Overloaded Fab Kills . | . . . . . Hacking | -11 -10 -9 -8 -8 --------- Run | Yrd Mat Mat Mat Sto Machines Accessed 8 | . 6 . 1 1 Terminals 7 | . 5 . 1 1 Fabricators . | . . . . . Repair Stations 1 | . 1 . . . Recycling Units . | . . . . . Scanalyzers . | . . . . . Garrison Access . | . . . . . Total Hacks 23 | . 18 . 3 2 Successful 12 | . 9 . 2 1 Failed 11 | . 9 . 1 1 Catastrophic 4 | . 4 . . . Database Lockouts . | . . . . . Manual . | . . . . . Terminals 19 | . 14 . 3 2 Fabricators . | . . . . . Repair Stations 4 | . 4 . . . Recycling Units . | . . . . . Scanalyzers . | . . . . . Garrison Access . | . . . . . Terminal Hacks 9 | . 6 . 2 1 Record 4 | . 2 . 2 . Open Door 1 | . . . . 1 Emergency Access Points 1 | . 1 . . . Locate Traps 1 | . 1 . . . Transport Status 1 | . 1 . . . Zone Layout 1 | . 1 . . . Fabricator Hacks . | . . . . . Repair Station Hacks 3 | . 3 . . . Scan Component 2 | . 2 . . . Repair 1 | . 1 . . . Recycling Unit Hacks . | . . . . . Scanalyzer . | . . . . . Garrison Access Hacks . | . . . . . Unauthorized Hacks . | . . . . . Terminals . | . . . . . Fabricators . | . . . . . Repair Stations . | . . . . . Recycling Units . | . . . . . Scanalyzers . | . . . . . Garrison Access . | . . . . . Data Cores Recovered . | . . . . . Used . | . . . . . Hacking Detections 7 | . 5 . 1 1 Full Trace Events 2 | . 1 . 1 . Feedback Events . | . . . . . Feedback Blocked . | . . . . . Robot Schematics Acquired . | . . . . . Robots Built . | . . . . . Authchips . | . . . . . Time . | . . . . . Total Robot Build Rating . | . . . . . Part Schematics Acquired . | . . . . . Parts Built . | . . . . . Authchips . | . . . . . Time . | . . . . . Total Part Build Rating . | . . . . . Part Studies Acquired . | . . . . . Parts Repaired 1 | . 1 . . . Time 26 | . 26 . . . Parts Recycled . | . . . . . Recycled Matter . | . . . . . Retrieved Matter . | . . . . . Retrieved Components . | . . . . . Parts Scanalyzed . | . . . . . Part Schematics Acquired . | . . . . . Parts Damaged . | . . . . . Bothacking | -11 -10 -9 -8 -8 ------------ Run | Yrd Mat Mat Mat Sto Used RIF Installer . | . . . . . Robots Hacked . | . . . . . Non-combat . | . . . . . Combat . | . . . . . Robot Hacks Applied . | . . . . . Relay Couplers Released . | . . . . . Fabnet Peak Effective % . | . . . . . Robots Rewired . | . . . . . Allies Hacked . | . . . . . Hacks Repelled . | . . . . . Allies | -11 -10 -9 -8 -8 -------- Run | Yrd Mat Mat Mat Sto Total Allies . | . . . . . Largest Group . | . . . . . Highest-Rated Group . | . . . . . Highest-Rated Ally . | . . . . . Total Orders . | . . . . . Ally Attacks . | . . . . . Total Damage . | . . . . . Kills . | . . . . . Allies Corrupted . | . . . . . Allies Melted . | . . . . . Intel | -11 -10 -9 -8 -8 ------- Run | Yrd Mat Mat Mat Sto Active Infowar (turns) 198 | . . 83 . 115 Optics 115 | . . . . 115 Terrain 83 | . . 83 . . Robot Analysis Total . | . . . . . Derelict Logs Recovered . | . . . . . Drone Launches . | . . . . . Drone Recoveries . | . . . . . Exploration | -11 -10 -9 -8 -8 ------------- Run | Yrd Mat Mat Mat Sto Turns Passed 1446 | 103 685 211 231 216 Spaces Moved 854 | 75 454 103 131 91 Core 36 | 27 . . . 9 Treads . | . . . . . Legs 223 | 48 175 . . . Wheels 595 | . 279 103 131 82 Hover . | . . . . . Flight . | . . . . . Fastest Speed 50 | 50 100 100 100 115 Average Speed 111 | 94 109 104 108 148 Slowest Speed 550 | 120 190 115 115 550 Overloaded Moves . | . . . . . Propulsion Burnouts . | . . . . . Robots Hopped . | . . . . . Potential Cave-ins . | . . . . . Cave-ins Triggered . | . . . . . Exploration Rate (%) 26 | 6 78 14 13 19 Regions Visited 4 Branch Regions 1 Pre-discovered Areas . | . . . . . Known Exits Taken 3 | . 1 1 1 . Unknown Exits Taken 1 | 1 . . . . Scrap Searched . | . . . . . Spaces Dug . | . . . . . Terrain Destroyed 6 | . . . . 6 Melee . | . . . . . Projectile . | . . . . . AOE 6 | . . . . 6 Terrain Rammed . | . . . . . Walls Destroyed . | . . . . . Machines Disabled . | . . . . . Actions | -11 -10 -9 -8 -8 --------- Run | Yrd Mat Mat Mat Sto Total 1153 | 94 550 163 184 162 Wait 106 | . 14 19 13 60 Move 850 | 74 453 102 130 91 Hop . | . . . . . Pick Up 36 | 7 16 2 8 3 Fast Attach 7 | . 1 2 4 . Attach 26 | 6 9 5 4 2 Detach . | . . . . . Swap 6 | 1 1 1 2 1 Drop 7 | . 3 1 3 . Fire 115 | 6 53 31 20 5 Melee . | . . . . . Ram . | . . . . . Kick . | . . . . . Crush . | . . . . . Escape Stasis . | . . . . . Rewire . | . . . . . Trap . | . . . . . Miscellaneous . | . . . . . Route ------- -11/Scrapyard -10/Materials (discovered 3 exits: *Mat x2 / *Sub) -9/Materials -8/Materials -8/Storage History --------- Turn | Location | Event 2 | -11/Scrapyard | Met Revision 17 65 | -11/Scrapyard | Discovered new exit (range 8) 104 | -11/Scrapyard | Entered Materials 322 | -10/Materials | Build established: Mutant 373 | -10/Materials | Discovered new exit (range 13) 469 | -10/Materials | Core integrity fell below 50% 474 | -10/Materials | Identified exit to Materials 515 | -10/Materials | Discovered new exit (range 6) 530 | -10/Materials | Identified exit to Subcaves 672 | -10/Materials | Repaired Ion Engine? 783 | -10/Materials | Discovered exit to Materials (range 6) 789 | -10/Materials | Entered another Materials area 789 | -9/Materials | Evolved 2 slots: Power x1, Utility x1 904 | -9/Materials | Lost 3 parts (1n1u1w) 990 | -9/Materials | Discovered new exit (range 5) 998 | -9/Materials | Identified exit to Materials 1000 | -9/Materials | Entered another Materials area 1000 | -8/Materials | Evolved 2 slots: Propulsion x1, Utility x1 1186 | -8/Materials | Discovered new exit (range 16) 1230 | -8/Materials | Identified exit to Storage 1231 | -8/Materials | Entered Storage 1407 | -8/Storage | Core integrity fell below 50% 1439 | -8/Storage | Core integrity fell below 20% 1447 | -8/Storage | Destroyed by G-47 Trooper with Particle Gun Last Messages --------------- 01394_ Lightning Gun destroyed. 01394_ U-05 Engineer builds a Door. 01396_ U-05 Engineer destroyed. 01398_ Overheating: Energy bleed (-40). 01398_ U-05 Engineer builds a Wall. 01400_ O-16 Technician uses terminal to summon reinforcements. 01400_ ALERT: Hostiles spotted, dispatching reinforcements to Terminal S006. 01400_ O-16 Technician locks terminal. 01401_ U-05 Engineer builds a Wall. 01403_ Overheating: System interference. 01403_ Signal Interpreter temporarily disabled. 01412_ Mic. Nuclear Core destroyed. 01412_ Carbon-fiber Leg destroyed. 01418_ K-01 Serf collects debris. 01423_ Mic. Nuclear Core destroyed. 01425_ K-01 Serf collects debris. 01443_ Critical hit (Burn: +37). 01447_ Mic. Nuclear Core destroyed. Map ----- +----------------------------------------------------+ | ???????????????????# # # # | | ???????????????????#!!! #T## # # | | ???????????????????#!!! #### # # | | ???????????????????######??# # # | | ???????????????????????????# # |=# | | ???????????????????????????# ####### | | ???????????????????????????# #?????? | | ???????????????????????????# #?????? | | ???????????????????????????# #?????? | | ???????????????????????????# #?????? | | ???????????????????????????# #?????? | | ???????????????????????????# #?????? | | ????????????????############ #?????? | | ???????######"### ?? ## ##????? | | + "????" # #????? | | ## "????" # #????? | | ?????# "????" + " #????? | | ###+###?????????# """""" # #????? | | ?????????????# ## # #????? | | ?????????????# + ## ##????? | | ?????????????# ## ## #?????? | | ?????????????# ##/########## #?????? | | ?????????????# ########## #?????? | | ?????????????# # YY ## #?????? | | ?????????????# =#! "T"g## #?????? | | ?????????????# =%+%= Y @ # #?????? | | ?????????????####+########## #?????? | | ???????????????#"[%* ## #?????? | | ???????????????#" "T" ## #?????? | | ???????????????#"!! #? ?????? | | ???????????????##!! #? ?????? | | ????????????????# " + ?????? | | ???????????????? """ # ?????? | | ???????????????## """" #? #????? | | ????????????????# """" #???###????? | | ????????????????###########??????????? | | ?????????????????????????????????????? | | ?????????????????????????????????????? | | ?????????????????????????????????????? | | ?????????????????????????????????????? | | ?????????????????????????????????????? | | ?????????????????????????????????????? | | ?????????????????????????????????????? | | ?????????????????????????????????????? | | ?????????????????????????????????????? | | ?????????????????????????????????????? | | ?????????????????????????????????????? | | ?????????????????????????????????????? | | ?????????????????????????????????????? | | ?????????????????????????????????????? | +----------------------------------------------------+ Best States ------------- Heat Dissipation 35 Energy Generation 25 Energy Capacity 400 Matter Stores 300 Matter Capacity 300 Sight Range 20 Terrain Scan Range 14 Terrain Scan Density 10 Evasion (%) 55 Salvage Targeting 2 Item Schematics ----------------- None Robot Schematics ------------------ None Fabricated ------------ Nothing Repaired ---------- Ion Engine | 68% | -10/Materials Studied --------- None Alien Tech Used ----------------- None Achievements -------------- It's Just You Part-time Mechanic Power Corrupts Storm Trooper There's More Where That Came From Challenges ------------ None Game ------ Seed SalvagingScrapoidRefractor Manual? 0 Play Time 00:33:21 Cumulative 2.1 hours Start 2026.01.27 @ 19:27:44 End 2026.01.27 @ 20:16:13 Sessions 3 Manual Loads 0 Difficulty Rogue Special Mode None Game No. 3 Rogue 3 Adventurer 0 Explorer 0 Win Type - Total 0 Types 0/0/0/0/0/0/0/0/0/0 Lore% 0 Gallery% 4 Achievement% 4 Wizard Run 0 Options --------- Layout 1 ASCII 0 Keyboard 0 Movement Mouse Keybinds 1 Fullscreen 2 Font 24/Smallcaps Map View 50x35 Zoom Use 0% Tactical HUD 1 Map Filters NONE Filters NONE Steam 1 RUN: f5ebaede-7bb4-4dc1-8408-ea50b9cecd2c